fUST/lending_fUST_20240622
["ID","MTS","AMOUNT","RATE_DAILY","PERIOD"]
[330142350,1719036641191,-346.1,0.00021269,2]
[330142351,1719036641200,-346.1,0.00021269,2]
[330142352,1719036641212,-346.1,0.00021269,2]
[330142353,1719036641222,-346.1,0.00021269,2]
[330142354,1719036641231,-28669.68429312,0.00021269,3]
[330142355,1719036641241,-2852.97637863,0.00021348,2]
[330142356,1719036641250,-500.0,0.00021369,2]
[330142357,1719036641260,-500.0,0.00021369,2]
[330142358,1719036641269,-502.77376036,0.00021369,2]
[330142359,1719036641279,-500.0,0.00021369,2]
[330142360,1719036641288,-500.0,0.00021369,2]
[330142361,1719036641297,-501.51875684,0.00021369,2]
[330142362,1719036641307,-500.0,0.00021369,2]
[330142363,1719036641316,-798.5,0.00021369,2]
[330142364,1719036641326,-504.20165479,0.00021369,2]
[330142365,1719036641335,-455.17938042,0.00021369,2]
[330142366,1719036641344,-510.27818282,0.00021369,2]
[330142367,1719036641354,-346.1,0.00021369,2]
[330142368,1719036641363,-346.1,0.00021369,2]
[330142369,1719036641373,-346.1,0.00021369,2]
[330142370,1719036641382,-346.1,0.00021369,2]
[330142371,1719036641392,-346.1,0.00021369,2]
[330142372,1719036641401,-500.0,0.00021369,2]
[330142373,1719036641410,-346.1,0.00021369,2]
[330142374,1719036641420,-346.1,0.00021369,2]
[330142375,1719036641430,-346.1,0.00021369,2]
[330142376,1719036641440,-346.1,0.00021369,2]
[330142377,1719036641449,-346.1,0.00021369,2]
[330142378,1719036641458,-346.1,0.00021369,2]
[330142379,1719036641468,-346.1,0.00021369,2]
[330142380,1719036641477,-500.0,0.00021369,2]
[330142381,1719036641487,-500.0,0.00021369,2]
[330142382,1719036641497,-524.33979702,0.00021369,2]
[330142383,1719036641506,-1056.11,0.00021369,2]
[330142384,1719036641515,-674.38,0.00021369,2]
[330142385,1719036641524,-500.0,0.00021369,2]
[330142387,1719036641534,-500.0,0.00021369,2]
[330142388,1719036641543,-500.0,0.00021369,2]
[330142389,1719036641552,-500.0,0.00021369,2]
[330142390,1719036641560,-500.0,0.00021369,2]
[330142391,1719036641569,-453.64456255,0.00021369,2]
[330142392,1719036641579,-500.0,0.00021369,2]
[330142393,1719036641588,-728.17,0.00021369,2]
[330142394,1719036641597,-500.0,0.00021369,2]
[330142395,1719036641607,-500.0,0.00021369,2]
[330142396,1719036641617,-500.0,0.00021369,2]
[330142397,1719036641627,-500.0,0.00021369,2]
[330142398,1719036641637,-505.52,0.00021369,2]
[330142399,1719036641649,-500.0,0.00021369,2]
[330142400,1719036641659,-506.73743682,0.00021369,2]
[330142401,1719036641670,-598.15,0.00021369,2]
[330142402,1719036641680,-500.0,0.00021369,2]
[330142403,1719036641690,-546.24,0.00021369,2]
[330142404,1719036641700,-502.79195075,0.00021369,2]
[330142405,1719036641833,-500.0,0.00021369,2]
[330142406,1719036641843,-500.0,0.00021369,2]
[330142407,1719036641853,-500.0,0.00021369,2]
[330142408,1719036641862,-502.02554846,0.00021369,2]
[330142409,1719036641872,-513.12,0.00021369,2]
[330142410,1719036641881,-662.27,0.00021369,2]
[330142411,1719036641891,-639.09795422,0.00021369,2]
[330142412,1719036641901,-500.0,0.00021369,2]
[330142413,1719036641910,-500.0,0.00021369,2]
[330142414,1719036641920,-504.44949631,0.00021369,2]
[330142415,1719036641931,-500.0,0.00021369,2]
[330142416,1719036641941,-500.0,0.00021369,2]
[330142417,1719036641951,-500.0,0.00021369,2]
[330142418,1719036641960,-500.0,0.00021369,2]
[330142419,1719036641970,-500.0,0.00021369,2]
[330142420,1719036641979,-500.0,0.00021369,2]
[330142421,1719036641988,-506.62150984,0.00021369,2]
[330142422,1719036641998,-2390.41,0.00021369,2]
[330142423,1719036642007,-500.0,0.00021369,2]
[330142424,1719036642016,-500.0,0.00021369,2]
[330142425,1719036642026,-505.47399611,0.00021369,2]
[330142426,1719036642035,-521.99,0.00021369,2]
[330142427,1719036642044,-500.0,0.00021369,2]
[330142428,1719036642053,-500.0,0.00021369,2]
[330142429,1719036642062,-500.0,0.00021369,2]
[330142430,1719036642071,-500.0,0.00021369,2]
[330142431,1719036642080,-503.43961658,0.00021369,2]
[330142432,1719036642090,-657.98,0.00021369,2]
[330142433,1719036642099,-501.99177187,0.00021369,2]
[330142434,1719036642108,-1093.59,0.00021369,2]
[330142435,1719036642118,-500.0,0.00021369,2]
[330142436,1719036642128,-1225.66,0.00021369,2]
[330142437,1719036642140,-1139.71,0.00021369,2]
[330142438,1719036642149,-500.0,0.00021369,2]
[330142439,1719036642159,-500.0,0.00021369,2]
[330142440,1719036642168,-505.58847405,0.00021369,2]
[330142441,1719036642186,-1710.53,0.00021369,2]
[330142442,1719036642195,-509.85107706,0.00021369,2]
[330142443,1719036642204,-469.57882302,0.00021369,2]
[330142444,1719036642213,-500.0,0.00021369,2]
[330142445,1719036642223,-500.0,0.00021369,2]
[330142446,1719036642232,-1016.09,0.00021369,2]
[330142447,1719036642241,-500.0,0.00021369,2]
[330142448,1719036642251,-504.93165493,0.00021369,2]
[330142449,1719036642259,-503.13798344,0.00021369,2]
[330142450,1719036642268,-508.43038546,0.00021369,2]
[330142451,1719036642278,-154.910297,0.00021369,2]
[330142452,1719036642287,-504.16562961,0.00021369,2]
[330142453,1719036642296,-500.0,0.00021369,2]
[330142454,1719036642306,-506.8535485,0.00021369,2]
[330142455,1719036642315,-500.0,0.00021369,2]
[330142456,1719036642324,-500.0,0.00021369,2]
[330142457,1719036642333,-505.14458078,0.00021369,2]
[330142458,1719036642342,-502.35705573,0.00021369,2]
[330142459,1719036642352,-500.0,0.00021369,2]
[330142460,1719036642361,-500.0,0.00021369,2]
[330142461,1719036642370,-555.93734586,0.00021369,2]
[330142462,1719036642380,-500.0,0.00021369,2]
[330142463,1719036642389,-500.0,0.00021369,2]
[330142464,1719036642398,-414.01179468,0.00021369,2]
[330142465,1719036642408,-500.0,0.00021369,2]
[330142466,1719036642417,-500.0,0.00021369,2]
[330142467,1719036642427,-589.85,0.00021369,2]
[330142468,1719036642436,-524.51431995,0.00021369,2]
[330142469,1719036642445,-500.0,0.00021369,2]
[330142470,1719036642454,-1106.05621196,0.00021369,2]
[330142471,1719036642514,-154.82195475,0.0001719,2]
[330142472,1719036642524,-486.98293674,0.00021369,2]
[330142487,1719036643873,-2455.66635811,0.00019531,2]
[330142488,1719036643884,-4223.3508513,0.00021369,2]
[330142489,1719036643895,-155.93821,0.00021369,2]
[330142490,1719036643905,-500.0,0.00021369,2]
[330142491,1719036643915,-500.0,0.00021369,2]
[330142492,1719036643926,-293.2282636,0.00021369,2]
[330142493,1719036643941,-206.7717364,0.00021369,2]
[330142494,1719036643950,-159.93636666,0.00021369,2]
[330142520,1719036647030,-456.33779419,0.00021369,2]
[330142521,1719036647040,-46.04190121,0.00021369,2]
[330142522,1719036647052,-453.95809879,0.00021369,2]
[330142523,1719036647061,-505.25345172,0.00021369,2]
[330142524,1719036647070,-500.0,0.00021369,2]
[330142525,1719036647080,-500.0,0.00021369,2]
[330142526,1719036647089,-500.0,0.00021369,2]
[330142527,1719036647098,-500.0,0.00021369,2]
[330142528,1719036647107,-500.0,0.00021369,2]
[330142529,1719036647243,-151.0,0.00021369,2]
[330142530,1719036647254,-151.0,0.00021369,2]
[330142531,1719036647264,-506.75995068,0.00021369,2]
[330142532,1719036647273,-500.0,0.00021369,2]
[330142533,1719036647282,-151.0,0.00021369,2]
[330142534,1719036647292,-151.0,0.00021369,2]
[330142535,1719036647301,-407.21402607,0.00021369,2]
[330142536,1719036647310,-279.466371,0.00021369,2]
[330142537,1719036647319,-503.63229699,0.00021369,2]
[330142538,1719036647328,-1286.6,0.00021369,2]
[330142539,1719036647338,-500.0,0.00021369,2]
[330142540,1719036647348,-504.92595071,0.00021369,2]
[330142541,1719036647357,-968.71,0.00021369,2]
[330142542,1719036647368,-500.0,0.00021369,2]
[330142543,1719036647377,-503.63592138,0.00021369,2]
[330142544,1719036647386,-502.83602046,0.00021369,2]
[330142545,1719036647395,-500.0,0.00021369,2]
[330142546,1719036647405,-500.0,0.00021369,2]
[330142547,1719036647415,-500.0,0.00021369,2]
[330142548,1719036647425,-500.0,0.00021369,2]
[330142549,1719036647434,-514.04306346,0.00021369,2]
[330142550,1719036647444,-503.56730211,0.00021369,2]
[330142551,1719036647454,-500.0,0.00021369,2]
[330142552,1719036647463,-501.48621505,0.00021369,2]
[330142553,1719036647472,-500.0,0.00021369,2]
[330142554,1719036647482,-500.0,0.00021369,2]
[330142555,1719036647491,-508.81286247,0.00021369,2]
[330142556,1719036647501,-500.0,0.00021369,2]
[330142557,1719036647511,-500.0,0.00021369,2]
[330142558,1719036647520,-502.94621287,0.00021369,2]
[330142559,1719036647530,-501.10739527,0.00021369,2]
[330142560,1719036647539,-299.77706428,0.00021369,2]
[330142561,1719036647548,-526.38007461,0.00021369,2]
[330142562,1719036647558,-500.0,0.00021369,2]
[330142563,1719036647568,-528.07349506,0.00021369,2]
[330142564,1719036647577,-502.57342566,0.00021369,2]
[330142565,1719036647586,-500.0,0.00021369,2]
[330142566,1719036647596,-500.0,0.00021369,2]
[330142567,1719036647605,-500.0,0.00021369,2]
[330142568,1719036647615,-500.0,0.00021369,2]
[330142569,1719036647624,-7.45491142,0.00021369,2]
[330142570,1719036651772,305.66823523,0.00025394,60]
[330142571,1719036696044,525.23846864,0.00025394,60]
[330142580,1719037110501,150.5,0.00021259,62]
[330142581,1719037111045,274.78,0.00021249,62]
[330142582,1719037111495,150.5,0.00021259,62]
[330142583,1719037111967,150.5,0.00021249,62]
[330142584,1719037112609,150.5,0.00021239,62]
[330142585,1719037112913,150.5,0.0002299,62]
[330142586,1719037113395,268.0,0.0002298,62]
[330142587,1719037216930,305.66823523,0.00025394,60]
[330142588,1719037231929,305.66823523,0.00025394,60]
[330142590,1719037303570,525.23846864,0.00025394,60]
[330142591,1719037526672,160.106557,0.00023562,72]
[330142592,1719037526860,160.106557,0.00023562,96]
[330142593,1719037527100,160.106557,0.00023562,120]
[330142595,1719037750534,159.25315055,0.00025394,60]
[330142613,1719037833143,-990.33586488,0.00014641,2]
[330142614,1719037833153,-154.82195475,0.00014645,2]
[330142615,1719037833163,-85.58158984,0.00014784,2]
[330142663,1719037833762,-154.82195475,0.00014641,2]
[330142665,1719037833772,-109.84459487,0.00014784,2]
[330142666,1719037833781,-154.82195475,0.00014948,2]
[330142668,1719037833791,-96.71917197,0.00015,2]
[330142670,1719037833803,-196.20198741,0.00015,2]
[330142671,1719037833812,-300.0,0.00015214,2]
[330142673,1719037833821,-11.2648871,0.00015214,2]
[330142675,1719037833833,-288.7351129,0.00015214,2]
[330142676,1719037833842,-21.2648871,0.00015215,2]
[330142678,1719037833853,-2048.81293769,0.00015215,2]
[330142680,1719037833865,-2028.89952765,0.00015215,2]
[330142681,1719037833876,-3929.39279019,0.00015215,2]
[330142700,1719037838876,-16871.62985737,0.00015215,2]
[330142701,1719037838885,-1008.304492,0.00015523,2]
[330142702,1719037838894,-2605.01342204,0.00016119,2]
[330142703,1719037838903,-1841.7497686,0.00016547,2]
[330142704,1719037838913,-224.0,0.00016647,2]
[330142705,1719037838922,-420.0,0.00016735,2]
[330142706,1719037838931,-3588.75051812,0.000179,2]
[330142707,1719037838941,-20000.0,0.00018,2]
[330142708,1719037838951,-2852.97637863,0.00018,2]
[330142709,1719037838960,-3588.75051809,0.00018195,2]
[330142710,1719037838969,-587.0,0.00018409,2]
[330142711,1719037838978,-1841.74976858,0.00018455,2]
[330142712,1719037838987,-477.28525612,0.00018488,2]
[330142713,1719037838996,-3922.60095173,0.00018488,2]
[330142714,1719037839006,-3588.75051809,0.00018489,2]
[330142715,1719037839015,-3588.75051809,0.00018784,2]
[330142716,1719037839024,-3588.75051809,0.00019078,2]
[330142717,1719037839033,-373.5640515,0.00019177,2]
[330142718,1719037839044,-2778.4187945,0.00019178,2]
[330142719,1719037839192,-2778.4187945,0.00019178,2]
[330142720,1719037839204,-2778.4187945,0.00019178,2]
[330142721,1719037839216,-2778.4187945,0.00019178,2]
[330142722,1719037839227,-2778.4187945,0.00019178,2]
[330142723,1719037839237,-2778.4187945,0.00019178,2]
[330142724,1719037839248,-2778.4187945,0.00019178,2]
[330142725,1719037839258,-2778.4187945,0.00019178,2]
[330142726,1719037839268,-2778.4187945,0.00019178,2]
[330142727,1719037839278,-711.54531243,0.00019178,2]
[330142728,1719037839291,-2066.87348207,0.00019178,2]
[330142729,1719037839300,-53.47847168,0.00019178,2]
[330142730,1719037839331,-2270.82460819,0.00019178,2]
[330142731,1719037839350,-454.11571463,0.00019178,2]
[330142732,1719037839361,-2778.4187945,0.00019178,2]
[330142733,1719037839372,-2778.4187945,0.00019178,2]
[330142734,1719037839382,-2778.4187945,0.00019178,2]
[330142735,1719037839393,-2778.4187945,0.00019178,2]
[330142736,1719037839403,-2778.4187945,0.00019178,2]
[330142737,1719037839414,-2778.4187945,0.00019178,2]
[330142738,1719037839424,-2778.4187945,0.00019178,2]
[330142739,1719037839434,-2778.4187945,0.00019178,2]
[330142740,1719037839445,-2778.4187945,0.00019178,2]
[330142741,1719037839456,-2778.4187945,0.00019178,2]
[330142742,1719037839466,-2778.4187945,0.00019178,2]
[330142743,1719037839477,-2778.4187945,0.00019178,2]
[330142744,1719037839489,-2778.4187945,0.00019178,2]
[330142745,1719037839499,-2778.4187945,0.00019178,2]
[330142746,1719037839510,-2778.4187945,0.00019178,2]
[330142747,1719037839520,-2778.4187945,0.00019178,2]
[330142748,1719037839531,-2778.4187945,0.00019178,2]
[330142749,1719037839542,-2778.4187945,0.00019178,2]
[330142750,1719037839553,-2778.4187945,0.00019178,2]
[330142751,1719037839563,-2778.4187945,0.00019178,2]
[330142752,1719037839573,-2778.4187945,0.00019178,2]
[330142753,1719037839583,-2778.4187945,0.00019178,2]
[330142754,1719037839597,-2778.4187945,0.00019178,2]
[330142755,1719037839607,-2778.4187945,0.00019178,2]
[330142756,1719037839616,-2778.4187945,0.00019178,2]
[330142757,1719037839627,-2778.4187945,0.00019178,2]
[330142758,1719037839637,-2778.4187945,0.00019178,2]
[330142759,1719037839646,-2778.4187945,0.00019178,2]
[330142760,1719037839656,-2778.4187945,0.00019178,2]
[330142761,1719037839666,-2778.4187945,0.00019178,2]
[330142762,1719037839675,-2778.4187945,0.00019178,2]
[330142763,1719037839686,-2778.4187945,0.00019178,2]
[330142764,1719037839695,-2778.4187945,0.00019178,2]
[330142765,1719037839706,-2778.4187945,0.00019178,2]
[330142766,1719037839716,-2778.4187945,0.00019178,2]
[330142767,1719037839725,-2778.4187945,0.00019178,2]
[330142768,1719037839735,-2778.4187945,0.00019178,2]
[330142769,1719037839745,-2703.40148705,0.00019178,2]
[330142770,1719037839755,-2703.40148705,0.00019178,2]
[330142771,1719037839765,-2703.40148705,0.00019178,2]
[330142772,1719037839774,-2703.40148705,0.00019178,2]
[330142773,1719037839784,-2703.40148705,0.00019178,2]
[330142774,1719037839794,-2703.40148705,0.00019178,2]
[330142775,1719037839804,-2703.40148705,0.00019178,2]
[330142776,1719037839813,-2703.40148705,0.00019178,2]
[330142777,1719037839823,-2703.40148705,0.00019178,2]
[330142778,1719037839833,-2703.40148705,0.00019178,2]
[330142779,1719037839846,-2703.40148705,0.00019178,2]
[330142780,1719037839856,-2703.40148705,0.00019178,2]
[330142781,1719037839866,-2703.40148705,0.00019178,2]
[330142782,1719037839876,-2703.40148705,0.00019178,2]
[330142783,1719037839886,-2703.40148705,0.00019178,2]
[330142784,1719037839896,-2703.40148705,0.00019178,2]
[330142785,1719037839906,-2703.40148705,0.00019178,2]
[330142786,1719037839916,-2703.40148705,0.00019178,2]
[330142787,1719037839926,-2703.40148705,0.00019178,2]
[330142788,1719037839936,-2703.40148705,0.00019178,2]
[330142789,1719037839946,-2703.40148705,0.00019178,2]
[330142790,1719037839957,-2703.40148705,0.00019178,2]
[330142791,1719037839968,-2703.40148705,0.00019178,2]
[330142792,1719037839978,-2703.40148705,0.00019178,2]
[330142793,1719037839988,-2703.40148701,0.00019178,2]
[330142794,1719037839999,-431.84116032,0.00019178,2]
[330142795,1719037840009,-436.40696925,0.00019178,2]
[330142796,1719037840021,-434.0221122,0.00019178,2]
[330142797,1719037840031,-500.0,0.00019178,2]
[330142798,1719037840041,-500.0,0.00019178,2]
[330142799,1719037840051,-500.0,0.00019178,2]
[330142800,1719037840061,-502.36350839,0.00019178,2]
[330142801,1719037840071,-500.0,0.00019178,2]
[330142802,1719037840081,-500.0,0.00019178,2]
[330142803,1719037840093,-500.0,0.00019178,2]
[330142804,1719037840102,-305.95043848,0.00019178,2]
[330142805,1719037840112,-500.0,0.00019178,2]
[330142806,1719037840123,-500.0,0.00019178,2]
[330142807,1719037840136,-500.0,0.00019178,2]
[330142808,1719037840146,-500.0,0.00019178,2]
[330142809,1719037840156,-500.0,0.00019178,2]
[330142810,1719037840167,-500.0,0.00019178,2]
[330142811,1719037840178,-500.0,0.00019178,2]
[330142812,1719037840188,-500.0,0.00019178,2]
[330142813,1719037840198,-377.68748467,0.00019178,2]
[330142814,1719037840209,-293.91216119,0.00019178,2]
[330142815,1719037840220,-500.0,0.00019178,2]
[330142816,1719037840230,-284.55335118,0.00019178,2]
[330142817,1719037840240,-500.0,0.00019178,2]
[330142818,1719037840251,-500.0,0.00019178,2]
[330142819,1719037840263,-368.09393043,0.00019178,2]
[330142820,1719037840282,-264.80857907,0.00019178,2]
[330142821,1719037840297,-159.03956,0.00019178,2]
[330142822,1719037840310,-153.243,0.00019731,2]
[330142823,1719037840326,-1752.0,0.00019731,2]
[330142824,1719037840344,-292.90827578,0.0002,2]
[330142825,1719037840361,-4837.64567885,0.0002,2]
[330142826,1719037840376,-167.37446479,0.0002,2]
[330142827,1719037840390,-823.0,0.0002025,2]
[330142828,1719037840403,-1841.74976858,0.00020362,2]
[330142829,1719037840419,-1002.89680648,0.00020858,2]
[330142830,1719037840434,-768.39998193,0.00021,2]
[330142831,1719037840449,-154.82195475,0.00021076,2]
[330142832,1719037840464,-185.48375277,0.00021076,2]
[330142833,1719037840479,-175.93554965,0.00021077,2]
[330142834,1719037840494,-692.74146794,0.00021095,2]
[330142835,1719037840508,-171.674938,0.00021096,2]
[330142836,1719037840524,-712.5,0.00021096,2]
[330142837,1719037840538,-28669.68429312,0.00021169,3]
[330142838,1719037840554,-159.349895,0.00021269,2]
[330142839,1719037840567,-151.0,0.00021269,2]
[330142840,1719037840582,-1583.49961269,0.00021368,3]
[330142841,1719037840599,-293.90529376,0.00021368,2]
[330142843,1719037840614,-500.0,0.00021369,2]
[330142846,1719037840628,-500.0,0.00021369,2]
[330142848,1719037840639,-500.0,0.00021369,2]
[330142851,1719037840651,-500.0,0.00021369,2]
[330142853,1719037840668,-500.0,0.00021369,2]
[330142854,1719037840682,-500.0,0.00021369,2]
[330142855,1719037840694,-500.0,0.00021369,2]
[330142856,1719037840706,-500.0,0.00021369,2]
[330142857,1719037840720,-500.0,0.00021369,2]
[330142858,1719037840734,-500.0,0.00021369,2]
[330142859,1719037840746,-508.46700923,0.00021369,2]
[330142860,1719037840759,-500.0,0.00021369,2]
[330142861,1719037840771,-617.41,0.00021369,2]
[330142862,1719037840784,-503.13798344,0.00021369,2]
[330142864,1719037840799,-662.27,0.00021369,2]
[330142866,1719037840811,-500.0,0.00021369,2]
[330142868,1719037840824,-507.90207412,0.00021369,2]
[330142870,1719037840838,-1225.66,0.00021369,2]
[330142871,1719037840851,-509.85107706,0.00021369,2]
[330142872,1719037840863,-500.0,0.00021369,2]
[330142873,1719037840876,-507.02007302,0.00021369,2]
[330142874,1719037840888,-500.0,0.00021369,2]
[330142875,1719037840901,-500.0,0.00021369,2]
[330142876,1719037840914,-521.99,0.00021369,2]
[330142877,1719037840926,-500.0,0.00021369,2]
[330142878,1719037840938,-414.01179468,0.00021369,2]
[330142879,1719037840950,-500.0,0.00021369,2]
[330142880,1719037840962,-500.0,0.00021369,2]
[330142881,1719037840974,-500.0,0.00021369,2]
[330142882,1719037840986,-505.14458078,0.00021369,2]
[330142883,1719037840998,-500.0,0.00021369,2]
[330142884,1719037841011,-500.0,0.00021369,2]
[330142885,1719037841022,-500.0,0.00021369,2]
[330142886,1719037841034,-978.74,0.00021369,2]
[330142887,1719037841046,-500.0,0.00021369,2]
[330142889,1719037841058,-500.0,0.00021369,2]
[330142891,1719037841070,-515.43579771,0.00021369,2]
[330142893,1719037841082,-500.0,0.00021369,2]
[330142895,1719037841095,-502.89771481,0.00021369,2]
[330142897,1719037841107,-500.0,0.00021369,2]
[330142898,1719037841119,-500.0,0.00021369,2]
[330142899,1719037841137,-500.0,0.00021369,2]
[330142900,1719037841148,-504.16562961,0.00021369,2]
[330142901,1719037841161,-1058.54,0.00021369,2]
[330142903,1719037841174,-497.44003916,0.00021369,2]
[330142904,1719037841186,-500.0,0.00021369,2]
[330142905,1719037841197,-500.0,0.00021369,2]
[330142907,1719037841209,-500.0,0.00021369,2]
[330142909,1719037841222,-502.77376036,0.00021369,2]
[330142911,1719037841233,-555.93734586,0.00021369,2]
[330142912,1719037841245,-500.0,0.00021369,2]
[330142913,1719037841257,-500.0,0.00021369,2]
[330142914,1719037841269,-589.85,0.00021369,2]
[330142916,1719037841283,-501.6567086,0.00021369,2]
[330142917,1719037841296,-503.7210445,0.00021369,2]
[330142918,1719037841309,-500.0,0.00021369,2]
[330142919,1719037841322,-500.0,0.00021369,2]
[330142920,1719037841334,-500.0,0.00021369,2]
[330142921,1719037841346,-500.0,0.00021369,2]
[330142922,1719037841358,-500.0,0.00021369,2]
[330142923,1719037841371,-502.02554846,0.00021369,2]
[330142925,1719037841383,-504.44949631,0.00021369,2]
[330142926,1719037841395,-501.88579814,0.00021369,2]
[330142927,1719037841408,-502.76108036,0.00021369,2]
[330142928,1719037841420,-500.67561004,0.00021369,2]
[330142929,1719037841432,-500.0,0.00021369,2]
[330142930,1719037841444,-500.0,0.00021369,2]
[330142931,1719037841456,-317.48037558,0.00021369,2]
[330142932,1719037841469,-505.58847405,0.00021369,2]
[330142933,1719037841481,-502.47262781,0.00021369,2]
[330142934,1719037841493,-500.0,0.00021369,2]
[330142935,1719037841505,-504.72178182,0.00021369,2]
[330142936,1719037841517,-500.0,0.00021369,2]
[330142937,1719037841529,-500.0,0.00021369,2]
[330142938,1719037841540,-500.75457899,0.00021369,2]
[330142939,1719037841552,-500.0,0.00021369,2]
[330142940,1719037841565,-154.910297,0.00021369,2]
[330142941,1719037841574,-500.0,0.00021369,2]
[330142942,1719037841584,-250.0,0.00021369,2]
[330142943,1719037841595,-501.51875684,0.00021369,2]
[330142944,1719037841778,-509.41514431,0.00021369,2]
[330142945,1719037841788,-500.0,0.00021369,2]
[330142946,1719037841798,-500.0,0.00021369,2]
[330142947,1719037841807,-500.0,0.00021369,2]
[330142948,1719037841817,-552.19161741,0.00021369,2]
[330142949,1719037841826,-501.82915983,0.00021369,2]
[330142950,1719037841835,-500.0,0.00021369,2]
[330142951,1719037841845,-500.0,0.00021369,2]
[330142952,1719037841854,-508.43038546,0.00021369,2]
[330142953,1719037841865,-500.0,0.00021369,2]
[330142954,1719037841874,-500.0,0.00021369,2]
[330142955,1719037841884,-500.0,0.00021369,2]
[330142956,1719037841893,-506.0041644,0.00021369,2]
[330142957,1719037841903,-501.46225619,0.00021369,2]
[330142958,1719037841911,-1567.45,0.00021369,2]
[330142959,1719037841923,-503.43961658,0.00021369,2]
[330142960,1719037841934,-500.0,0.00021369,2]
[330142961,1719037841944,-500.0,0.00021369,2]
[330142962,1719037841954,-500.0,0.00021369,2]
[330142963,1719037841963,-455.17938042,0.00021369,2]
[330142964,1719037841973,-500.0,0.00021369,2]
[330142965,1719037841982,-500.0,0.00021369,2]
[330142966,1719037841992,-502.88607659,0.00021369,2]
[330142967,1719037842002,-1093.59,0.00021369,2]
[330142968,1719037842012,-543.89292685,0.00021369,2]
[330142969,1719037842021,-501.99177187,0.00021369,2]
[330142970,1719037842032,-500.0,0.00021369,2]
[330142971,1719037842043,-500.0,0.00021369,2]
[330142972,1719037842053,-500.0,0.00021369,2]
[330142973,1719037842064,-1000.0,0.00021369,2]
[330142974,1719037842075,-500.0,0.00021369,2]
[330142975,1719037842085,-500.0,0.00021369,2]
[330142976,1719037842098,-502.99426656,0.00021369,2]
[330142977,1719037842107,-500.0,0.00021369,2]
[330142978,1719037842119,-503.17884176,0.00021369,2]
[330142979,1719037842131,-503.228057,0.00021369,2]
[330142980,1719037842144,-500.0,0.00021369,2]
[330142981,1719037842155,-502.35705573,0.00021369,2]
[330142982,1719037842167,-500.0,0.00021369,2]
[330142983,1719037842176,-500.0,0.00021369,2]
[330142984,1719037842186,-500.68545369,0.00021369,2]
[330142985,1719037842195,-500.0,0.00021369,2]
[330142986,1719037842204,-500.0,0.00021369,2]
[330142987,1719037842216,-510.40676795,0.00021369,2]
[330142988,1719037842225,-500.0,0.00021369,2]
[330142989,1719037842235,-500.0,0.00021369,2]
[330142990,1719037842244,-580.22,0.00021369,2]
[330142991,1719037842255,-580.22,0.00021369,2]
[330142992,1719037842265,-580.22,0.00021369,2]
[330142993,1719037842274,-580.22,0.00021369,2]
[330142994,1719037842285,-580.22,0.00021369,2]
[330142995,1719037842294,-580.22,0.00021369,2]
[330142996,1719037842304,-580.22,0.00021369,2]
[330142997,1719037842314,-580.22,0.00021369,2]
[330142998,1719037842323,-580.22,0.00021369,2]
[330142999,1719037842333,-580.22,0.00021369,2]
[330143000,1719037842345,-580.22,0.00021369,2]
[330143001,1719037842354,-580.22,0.00021369,2]
[330143002,1719037842367,-580.22,0.00021369,2]
[330143003,1719037842377,-580.22,0.00021369,2]
[330143004,1719037842386,-580.22,0.00021369,2]
[330143005,1719037842395,-580.22,0.00021369,2]
[330143006,1719037842404,-580.22,0.00021369,2]
[330143007,1719037842414,-504.93165493,0.00021369,2]
[330143008,1719037842423,-500.0,0.00021369,2]
[330143009,1719037842432,-580.22,0.00021369,2]
[330143010,1719037842442,-580.22,0.00021369,2]